[Event "ESP-ch U2000 2024"]
[Site "Albacete"]
[Date "2024.09.01"]
[Round "9.7"]
[White "Campos Saez, Sergio"]
[Black "Marin Lopez, Juan Jose"]
[Result "1/2-1/2"]
[ECO "B03"]
[WhiteElo "1923"]
[BlackElo "1895"]
[Annotator "TA"]
[PlyCount "67"]
[EventDate "2024.08.27"]
[EventType "swiss"]
[EventCountry "ESP"]
[SourceTitle "playchess.com"]
[Source "ChessBase"]
[SourceQuality "1"]
[TimeControl "5400+30"]

{[%evp 15,67,-37,-11,-31,-4,-4,20,0,6,0,54,51,55,66,110,132,140,88,87,99,103,107,93,100,93,101,93,60,68,61,62,66,87,84,129,123,170,161,141,115,178,170,192,202,208,208,203,200,202,202,231,165,160,166]} 1. e4 {[%emt 0:00:02][%cal Be2e4,Be4e5][%mdl 32]} Nf6 {[%emt 0:05:56]} 2. e5 {[%emt 0:02:02]} Nd5 {[%emt 0:00:09]} 3. c4 {[%emt 0:00:13]} Nb6 {[%emt 0:00:02]} 4. d4 {[%emt 0:00:11]} d6 {[%emt 0:00:07]} 5. f4 {[%emt 0:00:15]} dxe5 {[%emt 0:02:53]} 6. fxe5 {[%emt 0:00:17]} Nc6 {[%emt 0:01:32]} 7. Nf3 {[%emt 0:02:06]} Bg4 {[%emt 0:00:58]} 8. Be3 {[%emt 0:01:51]} e6 {[%emt 0:00:25]} 9. Nc3 {[%emt 0:08:20]} Qd7 {[%emt 0:04:06]} 10. Qd2 {[%emt 0:04:40]} Be7 {[%emt 0:03:51] Strongly threatening ...Bxf3.} 11. O-O-O {[%emt 0:04:55] The position is equal.} O-O-O {[%emt 0:06:26]} 12. h3 {[%emt 0:10:52]} Bxf3 {[%emt 0:06:26]} ({Black should play} 12... Bh5 $1 $11) 13. gxf3 $14 {[%emt 0:00:23]} f6 {[%emt 0:05:16]} 14. f4 {[%emt 0:03:47]} g5 {[%emt 0:15:16]} 15. d5 {[%emt 0:17:05]} Qe8 {[%emt 0:13:32]} 16. Qf2 {[%emt 0:09:21] White is more active.} ({Much weaker is} 16. fxg5 $6 Nxe5 17. Qe1 Rf8 $11) ({Better is} 16. Qe2) 16... gxf4 $16 {[%emt 0:01:49]} 17. Bxb6 {[%emt 0:03:38]} ({But not} 17. Bxf4 Nxe5 18. Bg2 exd5 19. cxd5 Kb8 $15) (17. Qxf4 $6 Nxe5 18. Kb1 Bb4 $15) 17... axb6 {[%emt 0:03:30]} 18. dxc6 {[%emt 0:04:21]} Rxd1+ {[%emt 0:00:41]} 19. Kxd1 {[%emt 0:02:10][%cal Bc1d1,Bd1c2,Bc2d3][%mdl 32]} Qxc6 {[%emt 0:02:29]} 20. Bg2 {[%emt 0:02:47]} Qxc4 {[%emt 0:01:31]} 21. Qf3 {[%emt 0:02:21] Inhibits Qd3+.} c6 {[%emt 0:00:32]} 22. exf6 {[%emt 0:02:05]} Bxf6 {[%emt 0:01:06]} 23. Qe4 {[%emt 0:02:16]} Rd8+ {[%emt 0:01:39]} 24. Kc2 {[%emt 0:01:34] The board is on fire.} Qxe4+ {[%emt 0:01:50]} 25. Bxe4 {[%emt 0:01:35]} Bd4 {[%emt 0:04:53]} (25... Rg8 $16 {was necessary.} 26. Bxh7 Rg5) 26. Rd1 {[%emt 0:05:12]} h6 {[%emt 0:04:10]} 27. Ne2 {[%emt 0:01:08][%csl LRd4,LRf4]} Be3 {[%emt 0:01:09]} (27... Be5 $16 28. Rxd8+ Kxd8) 28. Rxd8+ $18 {[%emt 0:03:29] White is clearly better.} Kxd8 {[%emt 0:00:01]} 29. Kd3 {[%emt 0:00:26]} Ke7 {[%emt 0:00:13]} 30. Bf3 {[%emt 0:01:23]} e5 {[%emt 0:01:24]} 31. Ke4 {[%emt 0:01:19]} Kf6 {[%emt 0:01:09]} 32. Bg4 {[%emt 0:01:28]} b5 {[%emt 0:01:21][%cal Bb6b5,Bb5b4][%mdl 32]} 33. Kf3 {[%emt 0:01:59]} b4 34. Ke4 {Weighted Error Value: White=0.10 (very precise) /Black=0.17 (very precise) .  Mistake:       	White=1     	Black=3      Inaccurate:     	White=1     	Black=3      OK:         	White=13    	Black=8      Best:        	White=2     	Black=1} 1/2-1/2

[Event "ESP-ch U2000 2024"]
[Site "Albacete"]
[Date "2024.09.01"]
[Round "9.8"]
[White "Martino Girones, Gonzalo"]
[Black "Marquez Leon, Juan Antonio"]
[Result "1/2-1/2"]
[ECO "D10"]
[WhiteElo "1903"]
[BlackElo "1916"]
[Annotator "TA"]
[PlyCount "37"]
[EventDate "2024.08.27"]
[EventType "swiss"]
[EventCountry "ESP"]
[SourceTitle "playchess.com"]
[Source "ChessBase"]
[SourceQuality "1"]
[TimeControl "5400+30"]

{[%evp 9,37,22,58,60,68,68,55,55,71,43,64,34,22,29,36,18,29,13,25,0,15,0,10,-10,0,0,8,0,12,0]} 1. d4 {[%emt 0:00:02]} c6 {[%emt 0:00:06]} 2. c4 {[%emt 0:01:22]} d5 3. cxd5 {[%emt 0:00:06]} cxd5 {[%emt 0:00:10]} 4. Bf4 {[%emt 0:00:05]} Nc6 5. e3 {[%emt 0:00:53]} Qa5+ {[%emt 0:01:41]} 6. Nc3 {[%emt 0:05:01]} Nf6 {[%emt 0:00:23][%cal Oe7e5]} 7. Bd3 {[%emt 0:02:11]} e6 {[%emt 0:00:44]} 8. a3 {[%emt 0:05:54] [#] b4 would now be deadly. White is slightly better.} a6 {[%emt 0:00:57]} 9. Rc1 {[%emt 0:02:00]} b5 {[%emt 0:01:15]} 10. Nge2 {[%emt 0:05:34]} b4 {[%emt 0:05:45]} 11. axb4 {[%emt 0:00:32]} Nxb4 {[%emt 0:00:49]} 12. Bb1 {[%emt 0:03:11]} Bd7 {[%emt 0:00:30]} 13. O-O {[%emt 0:01:56]} Be7 {[%emt 0:03:35]} 14. h3 {[%emt 0:00:46]} Rc8 {[%emt 0:00:20] The position is equal.} 15. Bh2 {[%emt 0:01:10]} O-O {[%emt 0:05:49]} 16. Kh1 {[%emt 0:05:22]} Kh8 {[%emt 0:00:07]} 17. Kg1 {[%emt 0:00:04]} Kg8 {[%emt 0:00:03]} 18. Kh1 {[%emt 0:00:03]} Kh8 {[%emt 0:00:05]} 19. Kg1 {[%emt 0:00:04] Weighted Error Value: White=0.11 (very precise) /Black=0.09 (flawless) .  Inaccurate:     	White=2     	---        OK:         	White=2     	Black=5} 1/2-1/2

[Event "ESP-ch U2000 2024"]
[Site "Albacete"]
[Date "2024.09.01"]
[Round "9.9"]
[White "Machin Arbelo, Pedro Alexis"]
[Black "Murillo Lopez, Francisco"]
[Result "1/2-1/2"]
[ECO "A45"]
[WhiteElo "1916"]
[BlackElo "1925"]
[Annotator "TA"]
[PlyCount "58"]
[EventDate "2024.08.27"]
[EventType "swiss"]
[EventCountry "ESP"]
[SourceTitle "playchess.com"]
[Source "ChessBase"]
[SourceQuality "1"]
[TimeControl "5400+30"]

{[%evp 9,58,7,10,6,21,-28,-9,-22,-22,-21,-3,-9,0,-3,-15,-17,-13,-17,0,-20,-13,-63,-66,-77,-73,-64,-66,-65,-66,-70,-70,-74,-81,-107,0,0,0,-76,0,0,0,-83,0,0,0,-72,-60,-65,-79,-77,105]} 1. c3 {[%emt 0:00:08]} Nf6 {[%emt 0:00:41]} 2. d4 {[%emt 0:00:09]} g6 {[%emt 0:00:25]} 3. Bf4 {[%emt 0:00:29]} Bg7 {[%emt 0:00:27]} 4. Nd2 {[%emt 0:00:31]} d5 {[%emt 0:00:34]} 5. e3 {[%emt 0:01:08]} O-O {[%emt 0:00:43]} 6. Be2 {[%emt 0:00:33]} c5 {[%emt 0:02:31]} 7. g4 {[%emt 0:08:38]} (7. Ngf3 $142) 7... cxd4 {[%emt 0:02:14]} 8. exd4 {[%emt 0:00:19] The position is equal.} Nc6 {[%emt 0:01:21]} 9. h3 {[%emt 0:02:19]} Re8 {[%emt 0:02:05]} 10. Ngf3 {[%emt 0:00:09]} Nd7 {[%emt 0:00:59]} 11. O-O {[%emt 0:06:54]} e5 {[%emt 0:02:19]} 12. dxe5 {[%emt 0:03:33]} Ndxe5 {[%emt 0:02:35]} 13. Nxe5 {[%emt 0:05:11]} Nxe5 {[%emt 0:00:22]} 14. Re1 {[%emt 0:00:41]} Bd7 {[%emt 0:12:25]} 15. Nf3 {[%emt 0:10:07]} (15. Bg3 $11) 15... Nxf3+ $1 $15 {[%emt 0:08:16]} 16. Bxf3 {[%emt 0:00:18]} Rxe1+ {[%emt 0:00:21]} 17. Qxe1 {[%emt 0:00:07]} Qf6 $1 {[%emt 0:00:21]} 18. Qe3 {[%emt 0:07:34]} Re8 {[%emt 0:02:41]} 19. Qd4 {[%emt 0:01:12]} Qh4 {[%emt 0:00:28]} (19... Qxd4 20. cxd4 Bxd4 21. Rd1 Bxb2 22. Bxd5 $14) 20. Qxd5 {[%emt 0:07:22]} (20. Qxa7 Qxh3 21. Qxb7 Qxf3 $17 (21... Bxg4 22. Bxd5 Be6 23. Re1 $14)) 20... Bc6 {[%emt 0:05:06]} (20... Qxh3 $2 21. Qxd7 Rf8 22. Bg3 $18 (22. Qxb7 Bh6 $18) (22. Bxb7 Qh4 $18)) 21. Qd1 {[%emt 0:01:30]} Rd8 {[%emt 0:01:39][%mdl 1024] Black has strong compensation.} 22. Qe2 {[%emt 0:01:21]} Re8 {[%emt 0:00:28]} (22... Qxh3 23. Bxc6 bxc6 24. Bc7) 23. Qd1 {[%emt 0:00:57]} Rd8 {[%emt 0:00:51]} 24. Qe2 {[%emt 0:00:36]} Re8 {[%emt 0:00:45]} (24... Qxh3 25. Bxc6 bxc6 26. Rd1 Rxd1+ 27. Qxd1 $11) 25. Qd1 {[%emt 0:15:33]} Rd8 {[%emt 0:00:56]} (25... Qxh3 $17 26. Bxc6 bxc6) 26. Qe2 $11 {[%emt 0:00:06]} Re8 $40 {[%mdl 128] White needs to defend precisely.} (26... Qxh3 27. Bxc6 bxc6 28. Bc7) 27. Be3 (27. Qd1 $1 $11) 27... Qxh3 $17 28. Bxc6 bxc6 29. Rd1 Re4 $2 {Weighted Error Value: White=0.14 (very precise) /Black=0.15 (very precise) .  Mistake:       	White=3     	Black=2      Inaccurate:     	White=1     	---        OK:         	White=10    	Black=8      Best:        	White=3     	Black=3      Strong:       	---       	Black=2} (29... Be5 $17 {keeps the pressure on.} 30. Bf4 (30. Bxa7 $2 {leads to mate.} Qh2+ 31. Kf1 Qh1#) 30... Bxf4 31. Qxe8+ Kg7) 1/2-1/2